Cogmind - Beta 16 @@@ ROGUE MODE // 2025.11.02 @ 20:23:20 Player: Cameron Result: Destroyed by as-26896 with Assembled Maul Performance ------------- Evolutions (0) 0 Regions Visited (4) 800 Robots Destroyed (29) 145 Value Destroyed (794) 794 Prototype IDs (28) 560 Alien Tech Used (0) 0 Bonus (300) 300 TOTAL SCORE: 2599 Bonus ------- Aligned with FarCom 300 Cogmind --------- Core Integrity 0/250 Matter 280/300 Energy 240/265 System Corruption 1% Temperature Hot (284) Movement Walking (190) Ox1 Location -9/Mines Parts ------- > --- POWER (1) -------- Improved Ion Engine > --- PROPULSION (2) --- Aluminum Leg Aluminum Leg > --- UTILITY (2) ------ Improved Heat Sink Medium Storage Unit > --- WEAPON (2) ------- Beam Cannon Advanced Beam Cannon > --- INVENTORY (10) --- Light Nuclear Core Light Nuclear Core Aluminum Leg Aluminum Leg Compact Wheel Heat Sink Modified TNC Shield Generator Backup Laser I Rocket Launcher Peak State ------------ > --- POWER ------------ Improved Ion Engine > --- PROPULSION ------- Aluminum Leg Aluminum Leg > --- UTILITY ---------- Improved Heat Sink Medium Storage Unit > --- WEAPON ----------- Backup Laser I Advanced Beam Cannon > --- INVENTORY -------- Light Nuclear Core Light Nuclear Core Aluminum Leg Aluminum Leg Compact Wheel Heat Sink Modified TNC Shield Generator Beam Cannon Rocket Launcher [Rating: 14] Favorites ----------- Power Ion Engine Engine Ion Engine Propulsion Aluminum Leg Leg Aluminum Leg Utility Medium Storage Unit Device Improved Heat Sink Storage Medium Storage Unit Processor Signal Interpreter Weapon Backup Laser I Energy Gun Backup Laser I Energy Cannon Advanced Beam Cannon Ballistic Gun Assault Rifle Launcher Rocket Launcher Build | -11 -10 -10 -10 -9 ------- Run | Yrd Mat Min Exi Min Slots Evolved . | . . . . . Power . | . . . . . Propulsion . | . . . . . Utility . | . . . . . Weapon . | . . . . . Parts Attached 24 | 7 12 4 . 1 Power 3 | 1 1 1 . . Engine 3 | 1 1 1 . . Core . | . . . . . Reactor . | . . . . . Propulsion 8 | 2 5 1 . . Treads . | . . . . . Leg 8 | 2 5 1 . . Wheel . | . . . . . Hover . | . . . . . Flight . | . . . . . Utility 5 | 1 3 1 . . Device 2 | . 1 1 . . Storage 2 | 1 1 . . . Processor 1 | . 1 . . . Hackware . | . . . . . Protection . | . . . . . Artifact . | . . . . . Weapon 8 | 3 3 1 . 1 Energy Gun 3 | 1 1 1 . . Energy Cannon 2 | . 1 . . 1 Ballistic Gun 2 | 2 . . . . Ballistic Cannon . | . . . . . Launcher 1 | . 1 . . . Special Weapon . | . . . . . Impact Weapon . | . . . . . Slashing Weapon . | . . . . . Piercing Weapon . | . . . . . Special Melee Weapon . | . . . . . Unidentified Prototypes . | . . . . . Parts Lost 4 | . 4 . . . Power 1 | . 1 . . . Propulsion . | . . . . . Utility . | . . . . . Weapon 3 | . 3 . . . Highest Loss Streak 2 | . 2 . . . To Critical Strikes . | . . . . . Average Backups 9 | 5 9 10 10 10 Power 1 | 1 1 1 2 2 Propulsion 3 | 2 4 4 3 3 Utility 1 | . 1 1 2 3 Weapon 1 | . 1 2 2 2 Tool/Special . | . . . . . Unused Backups 18 | 3 7 . . 8 Power 4 | . 2 . . 2 Propulsion 9 | 3 3 . . 3 Utility 3 | . 1 . . 2 Weapon 2 | . 1 . . 1 Tool/Special . | . . . . . Average Slot Usage (%) 97 | . 95 100 100 100 Engine 13 | . 13 14 14 14 Leg 28 | . 28 28 28 28 Device 8 | . 2 14 14 14 Storage 14 | . 14 14 14 14 Processor 4 | . 9 . . . Energy Gun 9 | . 8 14 14 3 Energy Cannon 10 | . 2 14 14 24 Ballistic Gun 6 | . 13 . . . Launcher 1 | . 2 . . . Peak Build Rating 14 | 6 10 13 14 14 Average Rating 10 | 5 8 11 13 14 On Entrance 8 | . 6 10 13 14 Avg Prop Armor Cover (%) . | . . . . . Naked Turns . | . . . . . Heaviest Build 25 | 14 21 23 23 25 Greatest Support 20 | 20 20 20 20 20 Greatest Overweight (x) 4 | 4 1 1 1 1 Average Overweight (x) . | . . 1 1 1 Largest Inventory Capacity 10 | 8 10 10 10 10 Average Capacity 9 | 7 9 10 10 10 Most Carried 10 | 8 10 10 10 10 Average Carried 9 | 5 9 9 9 10 Final Capacity 10 | 8 10 10 10 10 Final Carried 10 | 8 10 10 10 10 Class Distribution -------------------- 89% | Mutant 10% | Scavenger-Mutant Dominant Class ---------------- Mutant | -10/Materials Scavenger-Mutant | -10/Mines Mutant | -10/Exiles Mutant | -9/Mines Resources | -11 -10 -10 -10 -9 ----------- Run | Yrd Mat Min Exi Min Matter Collected 727 | 300 351 76 . . Remotely . | . . . . . Salvage Created 912 | 110 546 237 . 19 Parts 49 | 6 29 13 . 1 Haulers Intercepted . | . . . . . Recyclers Shooed 1 | . 1 . . . Parts Field Recycled . | . . . . . Retrieved Matter . | . . . . . Parts Self-Destructed . | . . . . . Prevented . | . . . . . Parts Restored . | . . . . . Kills | -11 -10 -10 -10 -9 ------- Run | Yrd Mat Min Exi Min Combat Hostiles Destroyed 23 | . 15 7 . 1 Guns 12 | . 12 . . . Cannons 8 | . . 7 . 1 AOE 3 | . 3 . . . Classes Destroyed 8 | 3 4 . . 1 Worker 1 | 1 . . . . Tunneler 1 | 1 . . . . Recycler 1 | 1 . . . . Operator 1 | . 1 . . . Watcher 2 | . 2 . . . Swarmer 6 | . 3 3 . . Grunt 16 | . 12 4 . . Demolisher 1 | . . . . 1 Best Kill Streak 3 | 3 3 3 . 1 Combat Bots Only 3 | . 3 3 . 1 Max Kills in Single Turn 1 | 1 1 1 . 1 Gunslinging . | . . . . . Exploded 1 | . 1 . . . Melee . | . . . . . Uniques/NPCs Destroyed . | . . . . . Combat | -11 -10 -10 -10 -9 -------- Run | Yrd Mat Min Exi Min Hostile Shots Fired 121 | . 95 11 . 15 Missed 31 | . 25 3 . 3 Hits 90 | . 70 8 . 12 Melee 2 | . . . . 2 Projectile 88 | . 70 8 . 10 AOE 6 | . . . . 6 Damage Taken 1318 | . 925 73 . 320 Core 256 | . 194 . . 62 Absorbed by Shields . | . . . . . Core Remaining (%) 100 | 100 . . . . Volleys Fired 85 | 5 66 8 . 6 Largest 2 | 2 2 2 . 2 Hottest 128 | 40 50 98 . 128 Shots Fired 139 | 10 101 16 . 12 Gun 114 | 10 96 8 . . Cannon 20 | . . 8 . 12 Launcher 5 | . 5 . . . Special . | . . . . . Kinetic 77 | 10 67 . . . Thermal 57 | . 29 16 . 12 Explosive 5 | . 5 . . . Electromagnetic . | . . . . . Robot Hit Streak 9 | 3 9 5 . 3 Robot Miss Streak 4 | 1 4 1 . 2 Penetration Max . | . . . . . Secondary Targets 1 | . 1 . . . Max Gunslinging Chain 1 | . 1 . . . Shots Hit Robots 86 | 6 62 12 . 6 Core Hits 46 | 4 31 9 . 2 Critical Kills 1 | . 1 . . . Critical Parts Destroyed 2 | . 2 . . . Critical Strikes 3 | . 3 . . . Destroy 3 | . 3 . . . Melee Attacks . | . . . . . Impact . | . . . . . Slashing . | . . . . . Piercing . | . . . . . Sneak Attacks . | . . . . . Combat Hostiles . | . . . . . Follow-up Attacks . | . . . . . Damage Inflicted 1368 | 81 942 190 . 155 Guns 846 | 81 719 46 . . Cannons 299 | . . 144 . 155 Explosions 220 | . 220 . . . Melee . | . . . . . Ramming 3 | . 3 . . . Kinetic 656 | 81 575 . . . Thermal 489 | . 144 190 . 155 Explosive 220 | . 220 . . . Electromagnetic . | . . . . . Impact . | . . . . . Slashing . | . . . . . Piercing . | . . . . . Highest Corruption 1 | . 1 1 1 1 Average Corruption 1 | . 1 1 1 1 Corruption Purged . | . . . . . Corruption Blocked . | . . . . . Effects 13 | . 4 4 2 3 Message Errors 1 | . . . 1 . Matter Fused 4 | . 2 1 . 1 Heat Flow Errors 3 | . . 2 . 1 Energy Discharges 2 | . 1 . . 1 Data Loss (minor) 3 | . 1 1 1 . Overload Shots . | . . . . . Overflow Damage . | . . . . . Projectiles . | . . . . . Explosions . | . . . . . Melee . | . . . . . Knockbacks . | . . . . . Impact . | . . . . . Kinetic . | . . . . . Secondary . | . . . . . Self-Inflicted Damage 34 | . 34 . . . Shots 1 | . 1 . . . Rammed . | . . . . . Targets Rammed 1 | . 1 . . . Kicked 1 | . 1 . . . Crushed . | . . . . . Highest Temperature 284 | . 14 236 . 284 Average Temperature 37 | . 3 54 . 81 Received Heat Transfer 429 | . 414 15 . . Siege Activations . | . . . . . Martial Activations . | . . . . . Shielding Activations . | . . . . . Robots Disrupted . | . . . . . Combat Hostiles . | . . . . . Robots Corrupted . | . . . . . Combat Hostiles . | . . . . . Parts Fried . | . . . . . Impact Corruptions . | . . . . . Robots Melted . | . . . . . Combat Hostiles . | . . . . . Parts Melted 3 | . 2 1 . . Heat Transferred 1332 | . 592 444 . 296 Parts Sabotaged . | . . . . . Parts Stolen . | . . . . . Parts Stripped . | . . . . . Power Chain Reactions . | . . . . . Alert | -11 -10 -10 -10 -9 ------- Run | Yrd Mat Min Exi Min Maximum Alert Level . | . . . . . Low Security (%) 100 | 100 100 100 . 100 Level 1 . | . . . . . Level 2 . | . . . . . Level 3 . | . . . . . Level 4 . | . . . . . Level 5 . | . . . . . High Security . | . . . . . Max Security . | . . . . . Peak Influence 110 | 10 110 80 . 22 Initial 6 | . . 6 . . Average 33 | 1 54 28 . . Influence Increases 677 | 15 456 170 . 36 Destroy 0b10 Robot/C 460 | . 300 140 . 20 Destroy 0b10 Robot/NC 35 | 15 15 . . 5 Destroy Leader 114 | . 74 30 . 10 Allied During Kill 1 | . . . . 1 Successful Hack 32 | . 32 . . . Disable Machine 15 | . 15 . . . Destroy Structure 20 | . 20 . . . Influence Decreases 655 | 15 439 137 50 14 Entered New Map 61 | . . 11 50 . Time Decay 548 | 15 399 126 . 8 Lost Part 40 | . 40 . . . Lost Ally 6 | . . . . 6 Squads Dispatched 4 | . 3 . . 1 Investigation 2 | . 2 . . . Extermination . | . . . . . Reinforcement 2 | . 1 . . 1 Assault . | . . . . . Garrison . | . . . . . Intercept . | . . . . . Searches Triggered . | . . . . . Construction Impeded 1 | . . . . 1 Haulers Reinforced . | . . . . . Active Scanning Responses . | . . . . . Cargo Convoy Interrupts . | . . . . . Stealth | -11 -10 -10 -10 -9 --------- Run | Yrd Mat Min Exi Min Distress Signals 1 | . 1 . . . Communications Jammed . | . . . . . Distress Signals . | . . . . . Times Spotted 44 | . 24 8 . 12 Peak Tracking Total 5 | . 3 3 . 5 Tactical Retreats 1 | . . . . 1 Traps | -11 -10 -10 -10 -9 ------- Run | Yrd Mat Min Exi Min Traps Triggered 2 | . 2 . . . Indirectly . | . . . . . Trap Hack Attempts . | . . . . . Triggered . | . . . . . Disarmed . | . . . . . Reprogrammed . | . . . . . Reused . | . . . . . Traps Extracted . | . . . . . Installed . | . . . . . Triggered . | . . . . . Machines | -11 -10 -10 -10 -9 ---------- Run | Yrd Mat Min Exi Min Machines Disabled 1 | . 1 . . . Max in Single Turn 1 | . 1 . . . Machines Repaired . | . . . . . Machines Dismantled . | . . . . . Machines Sabotaged . | . . . . . Overloaded Fab Kills . | . . . . . Hacking | -11 -10 -10 -10 -9 --------- Run | Yrd Mat Min Exi Min Machines Accessed 7 | . 6 . 1 . Terminals 6 | . 6 . . . Fabricators . | . . . . . Repair Stations . | . . . . . Recycling Units . | . . . . . Scanalyzers . | . . . . . Garrison Access . | . . . . . Total Hacks 20 | . 19 . 1 . Successful 8 | . 7 . 1 . Failed 12 | . 12 . . . Catastrophic . | . . . . . Database Lockouts . | . . . . . Manual 14 | . 13 . 1 . Terminals 19 | . 19 . . . Fabricators . | . . . . . Repair Stations . | . . . . . Recycling Units . | . . . . . Scanalyzers . | . . . . . Garrison Access . | . . . . . Terminal Hacks 8 | . 7 . 1 . Prototype ID Bank 4 | . 4 . . . Terminal Index 1 | . 1 . . . Scanalyzer Index 1 | . 1 . . . Registered Components 1 | . 1 . . . Proto ID Catalog 1 | . . . 1 . Fabricator Hacks . | . . . . . Repair Station Hacks . | . . . . . Recycling Unit Hacks . | . . . . . Scanalyzer . | . . . . . Garrison Access Hacks . | . . . . . Unauthorized Hacks . | . . . . . Terminals . | . . . . . Fabricators . | . . . . . Repair Stations . | . . . . . Recycling Units . | . . . . . Scanalyzers . | . . . . . Garrison Access . | . . . . . Data Cores Recovered . | . . . . . Used . | . . . . . Hacking Detections 7 | . 7 . . . Full Trace Events 4 | . 4 . . . Feedback Events 1 | . 1 . . . Corruption 1 | . 1 . . . Feedback Blocked . | . . . . . Robot Schematics Acquired . | . . . . . Robots Built . | . . . . . Authchips . | . . . . . Time . | . . . . . Total Robot Build Rating . | . . . . . Part Schematics Acquired . | . . . . . Parts Built . | . . . . . Authchips . | . . . . . Time . | . . . . . Total Part Build Rating . | . . . . . Part Studies Acquired . | . . . . . Parts Repaired . | . . . . . Time . | . . . . . Parts Recycled . | . . . . . Recycled Matter . | . . . . . Retrieved Matter . | . . . . . Retrieved Components . | . . . . . Parts Scanalyzed . | . . . . . Part Schematics Acquired . | . . . . . Parts Damaged . | . . . . . Bothacking | -11 -10 -10 -10 -9 ------------ Run | Yrd Mat Min Exi Min Used RIF Installer . | . . . . . Robots Hacked . | . . . . . Non-combat . | . . . . . Combat . | . . . . . Robot Hacks Applied . | . . . . . Relay Couplers Released . | . . . . . Fabnet Peak Effective % . | . . . . . Robots Rewired . | . . . . . Allies Hacked . | . . . . . Hacks Repelled . | . . . . . Allies | -11 -10 -10 -10 -9 -------- Run | Yrd Mat Min Exi Min Total Allies 5 | . . . . 5 Largest Group 5 | . . . . 5 Highest-Rated Group 84 | . . . . 84 Highest-Rated Ally 31 | . . . . 31 Total Orders . | . . . . . Ally Attacks 30 | . . . . 30 Total Damage 302 | . . . . 302 Kills 4 | . . . . 4 Allies Corrupted 1 | . . . . 1 Allies Melted . | . . . . . Intel | -11 -10 -10 -10 -9 ------- Run | Yrd Mat Min Exi Min Active Infowar (turns) . | . . . . . Robot Analysis Total . | . . . . . Derelict Logs Recovered 3 | . . 1 . 2 Drone Launches . | . . . . . Drone Recoveries . | . . . . . Exploration | -11 -10 -10 -10 -9 ------------- Run | Yrd Mat Min Exi Min Turns Passed 2600 | 180 1139 366 430 485 Spaces Moved 1442 | 113 709 164 225 231 Core 8 | 8 . . . . Treads . | . . . . . Legs 1434 | 105 709 164 225 231 Wheels . | . . . . . Hover . | . . . . . Flight . | . . . . . Fastest Speed 50 | 50 120 190 190 190 Average Speed 154 | 125 128 190 190 190 Slowest Speed 250 | 250 190 190 190 190 Overloaded Moves . | . . . . . Propulsion Burnouts . | . . . . . Robots Hopped . | . . . . . Potential Cave-ins . | . . . . . Cave-ins Triggered . | . . . . . Exploration Rate (%) 48 | 6 96 30 61 51 Regions Visited 4 Branch Regions 3 Pre-discovered Areas . | . . . . . Known Exits Taken 1 | . 1 . . . Unknown Exits Taken 3 | 1 . 1 1 . Scrap Searched 2 | . . 1 . 1 Spaces Dug . | . . . . . Terrain Destroyed 16 | . 16 . . . Melee . | . . . . . Projectile . | . . . . . AOE 16 | . 16 . . . Terrain Rammed . | . . . . . Walls Destroyed . | . . . . . Machines Disabled . | . . . . . Actions | -11 -10 -10 -10 -9 --------- Run | Yrd Mat Min Exi Min Total 1685 | 140 845 205 228 267 Wait 83 | . 30 22 2 29 Move 1438 | 112 708 163 224 231 Hop . | . . . . . Pick Up 29 | 12 13 3 1 . Fast Attach 11 | 6 5 . . . Attach 2 | . 2 . . . Detach 1 | . 1 . . . Swap 12 | 1 6 4 . 1 Drop 23 | 4 13 5 1 . Fire 85 | 5 66 8 . 6 Melee . | . . . . . Ram . | . . . . . Kick 1 | . 1 . . . Crush . | . . . . . Escape Stasis . | . . . . . Rewire . | . . . . . Trap . | . . . . . Miscellaneous . | . . . . . Route ------- -11/Scrapyard -10/Materials (discovered 4 exits: *Mat x3 / *Min) -10/Mines (discovered 2 exits: *Mat / *Exi) -10/Exiles -9/Mines (discovered 2 exits: [*Mat x2]) History --------- Turn | Location | Event 16 | -11/Scrapyard | Discovered new exit (range 16) 181 | -11/Scrapyard | Entered Materials 315 | -10/Materials | Build established: Mutant 485 | -10/Materials | Discovered new exit (range 15) 676 | -10/Materials | Discovered new exit (range 16) 693 | -10/Materials | Identified exit to Mines 797 | -10/Materials | Core integrity fell below 50% 831 | -10/Materials | Discovered new exit (range 8) 838 | -10/Materials | Identified exit to Materials 1045 | -10/Materials | Discovered exit to Materials (range 3) 1320 | -10/Materials | Entered Mines 1336 | -10/Mines | Joined a pair of Derelicts in attacking an 0b10 outpost 1410 | -10/Mines | Learned 2 Materials zone layouts 1555 | -10/Mines | Discovered exit to Materials (range 9) 1676 | -10/Mines | Deemed a non-threat by the Exiles lab entrance 1676 | -10/Mines | Discovered new exit (range 5) 1686 | -10/Mines | Entered Exiles 1734 | -10/Exiles | Met 8R-AWN 1764 | -10/Exiles | Met EX-HEX 1825 | -10/Exiles | Met EX-BIN 1848 | -10/Exiles | Aligned with FarCom system 1850 | -10/Exiles | Given EX-Vault access code 1894 | -10/Exiles | Opened EX-Vault 1909 | -10/Exiles | Found Modified TNC 1952 | -10/Exiles | Warned to stay clear of 0b10 Research branches 1972 | -10/Exiles | Exiles lab attacked by MAIN.C 2098 | -10/Exiles | Discovered new exit (range 10) 2116 | -10/Exiles | Left Exiles lab with Modified TNC 2116 | -10/Exiles | Entered Mines 2122 | -9/Mines | Assisted by bots powering up and referring to "LRC-V3" 2192 | -9/Mines | Learned Materials terminal intel 2249 | -9/Mines | Discovered new exit (range 10) 2251 | -9/Mines | Learned Materials terminal intel 2360 | -9/Mines | Discovered new exit (range 10) 2513 | -9/Mines | Assembled infested the area 2518 | -9/Mines | Assisted by a Guerilla fighting off Assembled 2588 | -9/Mines | Core integrity fell below 20% 2601 | -9/Mines | Lost 7 allies 2601 | -9/Mines | Destroyed by as-26896 with Assembled Maul Last Messages --------------- 02554_ as-04012 destroyed. 02554_ U-05 Engineer builds a Wall. 02556_ The unstable cave ceiling collapses. 02556_ Mercenary 2a destroyed. 02558_ U-05 Engineer lays Concrete. 02560_ U-05 Engineer builds a Wall. 02561_ U-05 Engineer lays Concrete. 02564_ DK-RAY destroyed. 02585_ as-19033 destroyed. 02585_ as-05533 destroyed. 02590_ U-05 Engineer lays Concrete. 02593_ ALERT: Construction progress impeded, dispatching reinforcements to local area. 02593_ U-05 Engineer system corrupted by crushing effect. 02593_ U-05 Engineer knocked back. 02594_ The unstable cave ceiling collapses. 02595_ D-53 Grenadier destroyed. 02600_ System corrupted: Heat flow error (+149). 02600_ K-01 Serf collects debris. Map ----- +----------------------------------------------------+ | ????????????????????????????## #?????????? | | ?????????????????????????????## #?????????? | | ??????????????????????????????# ##??????#### | | ??????????????????????????????# #######??## # | | ??????????????????????????????# #?## #### | | ??????????????????????????????# ### ## | | ??????????????????????????????# | | ??????????????????????????????# # | | ??????????????????????????????##### # | | ???????????????????####???????????## # | | ??????????????????? [ #????????????### | | ??????????????????? #??###?????????### | | ???????????????????#a= ?? #???????????## | | ???????????????????#*%#??# #?????####???# | | ??????????????????##a%#??# ##?? ?#??# | | ???????########???##%*#??# #? # # ??# | | ??????## ##### =% ## # k # ??## # | | ??????# % # ## # ###### ## | | ???????????# u % %* % #? | | ???????????## * =/= ! = #? | | ????????????##### /!% ## ###########? | | ????????????????# ! # #????????????????? | | ?????????????????# ####????????????????? | | ?????????????????# ##??????????????????? | | ?????????????????# a #??????????????????? | | ?????????????????# @ #???????????????????? | | ?????????????????## #?????????????????### | | ?????????????????# #???????????????## | | ????????????????# ###????####??????## | | ????????????????# ##????## #?????## | | ????????????????# #?##### ####??# | | ???????????????# #?# %!#??# | | ?????????????? ### ##?# ##]#??# | | ????????????? #??####??# ## ##### | | ??????????? #?????????### ## | | ??????????? """ ????????????## ######### ## | | ??????????? """ ?????????????#####???????# #? | | ???????????????"??????????????????????????# #? | | ??????????????????????????????????????????# #? | | ?????????????????????????????????????????? #? | | ????????????????????????????????????????? #? | | ????????????????????????????????????????? #? | | ???????????????????????????????????????? ? | | ????????????????????????????????????????# ##? | | ????????????????????????????????????????####??? | | ??????????????????????????????????????????????? | | ??????????????????????????????????????????????? | | ??????????????????????????????????????????????? | | ??????????????????????????????????????????????? | | ??????????????????????????????????????????????? | +----------------------------------------------------+ Best States ------------- Heat Dissipation 39 Energy Generation 12 Energy Capacity 265 Matter Stores 300 Matter Capacity 300 Sight Range 16 Terrain Scan Density 10 Evasion (%) 55 Item Schematics ----------------- None Robot Schematics ------------------ None Fabricated ------------ Nothing Repaired ---------- Nothing Studied --------- None Alien Tech Used ----------------- None Achievements -------------- None Challenges ------------ None Game ------ Seed NanofilamentsLobotomyFilter Manual? 0 Play Time 00:23:28 Cumulative 43.2 hours Start 2025.11.02 @ 19:21:28 End 2025.11.02 @ 20:23:20 Sessions 1 Manual Loads 0 Difficulty Rogue Special Mode None Game No. 40 Rogue 40 Adventurer 0 Explorer 0 Win Type - Total 0 Types 0/0/0/0/0/0/0/0/0/0 Lore% 14 Gallery% 31 Achievement% 23 Wizard Run 0 Options --------- Layout 1 ASCII 0 Keyboard 0 Movement Numpad Keybinds 0 Fullscreen 2 Font 32/SmallcapsGlow Map View 50x35 Zoom Use 0% Tactical HUD 1 Map Filters NONE Filters NONE Steam 1 RUN: 71465997-3ee5-4ff7-a306-dc8ca761d0c0